lending/lending_fUSD_20240911
["ID","MTS","AMOUNT","RATE_DAILY","PERIOD"]
[337767196,1726079432433,-200.0,0.00013387,2]
[337767197,1726079432442,-23900.0,0.00013392,2]
[337767198,1726079432451,-299.99,0.00013392,2]
[337767199,1726079432464,-168.54,0.0001341,2]
[337767200,1726079432473,-510.79400654,0.00013488,2]
[337767201,1726079432483,-191.60425695,0.00013488,2]
[337767202,1726079432492,-150.0,0.00013488,2]
[337767203,1726079432502,-150.0,0.00013488,2]
[337767204,1726079432511,-254.25418652,0.00013488,2]
[337767205,1726079432521,-150.8509707,0.00013488,2]
[337767207,1726079432530,-150.1624668,0.00013488,2]
[337767208,1726079432540,-150.0,0.00013488,2]
[337767209,1726079432549,-150.0,0.00013488,2]
[337767211,1726079432563,-150.0,0.00013488,2]
[337767213,1726079432573,-150.0,0.00013488,2]
[337767215,1726079432582,-150.11393691,0.00013488,2]
[337767217,1726079432591,-150.0,0.00013488,2]
[337767218,1726079432601,-150.11896204,0.00013488,2]
[337767219,1726079432610,-150.0,0.00013488,2]
[337767220,1726079432619,-510.79400654,0.00013503,2]
[337767221,1726079432629,-191.60425695,0.00013503,2]
[337767222,1726079432638,-254.25418652,0.00013503,2]
[337767223,1726079432648,-510.79400654,0.00013518,2]
[337767224,1726079432657,-191.60425695,0.00013518,2]
[337767225,1726079432666,-254.25418652,0.00013518,2]
[337767226,1726079432676,-150.0,0.00013523,2]
[337767227,1726079432686,-510.79400654,0.00013533,2]
[337767228,1726079432695,-191.60425695,0.00013533,2]
[337767229,1726079432704,-254.25418652,0.00013533,2]
[337767230,1726079432714,-510.79400654,0.00013548,2]
[337767231,1726079432723,-191.60425695,0.00013548,2]
[337767232,1726079432732,-254.25418652,0.00013548,2]
[337767233,1726079432742,-150.0,0.00013559,2]
[337767234,1726079432753,-510.79400654,0.00013563,2]
[337767235,1726079432763,-191.60425695,0.00013563,2]
[337767236,1726079432772,-254.25418652,0.00013563,2]
[337767237,1726079432782,-250.0,0.00013566,2]
[337767238,1726079432792,-887.19,0.00013566,2]
[337767239,1726079432801,-250.0,0.00013566,2]
[337767240,1726079432812,-510.79400654,0.00013578,2]
[337767241,1726079432822,-191.60425695,0.00013578,2]
[337767242,1726079432831,-254.25418652,0.00013578,2]
[337767243,1726079432841,-565.3,0.00013587,2]
[337767244,1726079432851,-510.79400654,0.00013594,2]
[337767245,1726079432860,-191.60425695,0.00013594,2]
[337767246,1726079432871,-254.25418652,0.00013594,2]
[337767247,1726079432880,-150.0,0.00013595,2]
[337767248,1726079432890,-250.0,0.00013598,2]
[337767249,1726079432899,-155.19,0.00013605,2]
[337767250,1726079432909,-510.79400654,0.00013609,2]
[337767251,1726079432919,-191.60425695,0.00013609,2]
[337767252,1726079432928,-254.25418652,0.00013609,2]
[337767253,1726079432937,-510.79400654,0.00013624,2]
[337767254,1726079432946,-191.60425695,0.00013624,2]
[337767255,1726079432956,-254.25418652,0.00013624,2]
[337767256,1726079432965,-150.0,0.00013624,2]
[337767257,1726079432975,-150.0,0.0001363,2]
[337767258,1726079432984,-510.79400654,0.00013639,2]
[337767259,1726079432994,-191.60425695,0.00013639,2]
[337767260,1726079433004,-254.25418652,0.00013639,2]
[337767261,1726079433014,-510.79400654,0.00013654,2]
[337767262,1726079433023,-191.60425695,0.00013654,2]
[337767263,1726079433033,-254.25418652,0.00013654,2]
[337767264,1726079433043,-150.0,0.00013666,2]
[337767265,1726079433055,-510.79400654,0.00013669,2]
[337767266,1726079433066,-191.60425695,0.00013669,2]
[337767267,1726079433076,-254.25418652,0.00013669,2]
[337767268,1726079433085,-510.79400654,0.00013684,2]
[337767269,1726079433095,-191.60425695,0.00013684,2]
[337767270,1726079433104,-254.25418652,0.00013684,2]
[337767271,1726079433114,-200.0,0.00013699,2]
[337767272,1726079433125,-160.99,0.00013699,2]
[337767273,1726079433135,-176.34,0.00013699,2]
[337767274,1726079433145,-510.79400654,0.000137,2]
[337767275,1726079433154,-191.60425695,0.000137,2]
[337767276,1726079433164,-254.25418652,0.000137,2]
[337767277,1726079433174,-150.0,0.00013702,2]
[337767278,1726079433184,-510.79400654,0.00013715,2]
[337767279,1726079433193,-191.60425695,0.00013715,2]
[337767280,1726079433203,-254.25418652,0.00013715,2]
[337767281,1726079433212,-510.79400654,0.0001373,2]
[337767282,1726079433224,-191.60425695,0.0001373,2]
[337767283,1726079433234,-254.25418652,0.0001373,2]
[337767284,1726079433246,-150.0,0.00013737,2]
[337767285,1726079433255,-150.0,0.00013737,2]
[337767286,1726079433265,-510.79400654,0.00013745,2]
[337767287,1726079433276,-191.60425695,0.00013745,2]
[337767288,1726079433286,-254.25418652,0.00013745,2]
[337767289,1726079433297,-510.79400654,0.0001376,2]
[337767290,1726079433308,-191.60425695,0.0001376,2]
[337767291,1726079433318,-254.25418652,0.0001376,2]
[337767292,1726079433328,-150.0,0.0001376,2]
[337767293,1726079433338,-9912.1,0.00013772,2]
[337767294,1726079433348,-150.0,0.00013773,2]
[337767295,1726079433359,-510.79400654,0.00013775,2]
[337767296,1726079433369,-191.60425695,0.00013775,2]
[337767297,1726079433379,-254.25418652,0.00013775,2]
[337767298,1726079433389,-510.79400654,0.0001379,2]
[337767299,1726079433399,-191.60425695,0.0001379,2]
[337767300,1726079433408,-254.25418652,0.0001379,2]
[337767301,1726079433418,-510.79400654,0.00013806,2]
[337767302,1726079433427,-191.60425695,0.00013806,2]
[337767303,1726079433437,-254.25418652,0.00013806,2]
[337767304,1726079433447,-150.0,0.00013809,2]
[337767305,1726079433457,-510.79400654,0.00013821,2]
[337767306,1726079433467,-191.60425695,0.00013821,2]
[337767307,1726079433477,-254.25418652,0.00013821,2]
[337767308,1726079433487,-1000.0,0.00013822,2]
[337767309,1726079433497,-510.79400654,0.00013836,2]
[337767310,1726079433507,-191.60425695,0.00013836,2]
[337767311,1726079433517,-254.25418652,0.00013836,2]
[337767312,1726079433528,-150.0,0.00013844,2]
[337767313,1726079433539,-510.79400654,0.00013851,2]
[337767314,1726079433549,-191.60425695,0.00013851,2]
[337767315,1726079433560,-254.25418652,0.00013851,2]
[337767316,1726079433569,-150.0,0.00013862,2]
[337767317,1726079433579,-510.79400654,0.00013866,2]
[337767318,1726079433589,-191.60425695,0.00013866,2]
[337767319,1726079433599,-254.25418652,0.00013866,2]
[337767320,1726079433609,-150.0,0.0001388,2]
[337767321,1726079433618,-510.79400654,0.00013881,2]
[337767322,1726079433628,-191.60425695,0.00013881,2]
[337767323,1726079433637,-254.25418652,0.00013881,2]
[337767324,1726079433647,-510.79400654,0.00013896,2]
[337767325,1726079433657,-191.60425695,0.00013896,2]
[337767326,1726079433667,-254.25418652,0.00013896,2]
[337767327,1726079433677,-150.0,0.00013896,2]
[337767328,1726079433686,-510.79400654,0.00013912,2]
[337767329,1726079433695,-191.60425695,0.00013912,2]
[337767330,1726079433704,-254.25418652,0.00013912,2]
[337767331,1726079433714,-342.91,0.00013912,2]
[337767332,1726079433723,-150.0,0.00013916,2]
[337767333,1726079433733,-510.79400654,0.00013927,2]
[337767334,1726079433742,-191.60425695,0.00013927,2]
[337767335,1726079433752,-254.25418652,0.00013927,2]
[337767336,1726079433762,-510.79400654,0.00013942,2]
[337767337,1726079433771,-191.60425695,0.00013942,2]
[337767338,1726079433781,-254.25418652,0.00013942,2]
[337767339,1726079433790,-500.0,0.0001395,2]
[337767340,1726079433800,-500.0,0.0001395,2]
[337767341,1726079433814,-320.60159354,0.0001395,2]
[337767342,1726079433823,-150.0,0.00013952,2]
[337767343,1726079433832,-510.79400654,0.00013957,2]
[337767344,1726079433842,-191.60425695,0.00013957,2]
[337767345,1726079433852,-254.25418652,0.00013957,2]
[337767346,1726079433862,-510.79400654,0.00013972,2]
[337767347,1726079433871,-191.60425695,0.00013972,2]
[337767348,1726079433881,-254.25418652,0.00013972,2]
[337767349,1726079433892,-154.362379,0.00013974,2]
[337767350,1726079433902,-152.714661,0.00013974,2]
[337767351,1726079433911,-154.362379,0.00013974,2]
[337767352,1726079433921,-510.79400654,0.00013987,2]
[337767353,1726079433930,-191.60425695,0.00013987,2]
[337767354,1726079433940,-150.0,0.00013987,2]
[337767355,1726079433950,-150.0,0.00013987,2]
[337767356,1726079433960,-254.25418652,0.00013987,2]
[337767357,1726079433969,-150.0,0.00013987,2]
[337767358,1726079433979,-150.0,0.00013987,2]
[337767359,1726079433988,-150.0,0.00013987,2]
[337767360,1726079433997,-150.0,0.00013987,2]
[337767361,1726079434007,-157.1,0.00013999,2]
[337767362,1726079434017,-510.79400654,0.00014002,2]
[337767363,1726079434027,-191.60425695,0.00014002,2]
[337767364,1726079434037,-254.25418652,0.00014002,2]
[337767365,1726079434046,-510.79400654,0.00014017,2]
[337767366,1726079434057,-191.60425695,0.00014017,2]
[337767367,1726079434067,-254.25418652,0.00014017,2]
[337767368,1726079434076,-150.0,0.00014023,2]
[337767369,1726079434086,-510.79400654,0.00014033,2]
[337767370,1726079434095,-191.60425695,0.00014033,2]
[337767371,1726079434105,-254.25418652,0.00014033,2]
[337767372,1726079434115,-150.0,0.00014033,2]
[337767373,1726079434125,-191.60425695,0.00014048,2]
[337767374,1726079434134,-254.25418652,0.00014048,2]
[337767375,1726079434144,-150.0,0.00014059,2]
[337767376,1726079434154,-191.60425695,0.00014063,2]
[337767377,1726079434164,-254.25418652,0.00014063,2]
[337767378,1726079434173,-191.60425695,0.00014078,2]
[337767379,1726079434182,-254.25418652,0.00014078,2]
[337767380,1726079434192,-191.60425695,0.00014093,2]
[337767381,1726079434201,-254.25418652,0.00014093,2]
[337767382,1726079434211,-150.0,0.00014094,2]
[337767383,1726079434221,-500.0,0.000141,2]
[337767384,1726079434230,-227.1,0.000141,2]
[337767385,1726079434239,-191.60425695,0.00014108,2]
[337767386,1726079434249,-254.25418652,0.00014108,2]
[337767387,1726079434258,-191.60425695,0.00014123,2]
[337767388,1726079434268,-254.25418652,0.00014123,2]
[337767389,1726079434278,-150.0,0.0001413,2]
[337767390,1726079434288,-191.60425695,0.00014139,2]
[337767391,1726079434298,-254.25418652,0.00014139,2]
[337767392,1726079434310,-191.60425695,0.00014154,2]
[337767393,1726079434320,-254.25418652,0.00014154,2]
[337767394,1726079434329,-150.0,0.00014166,2]
[337767395,1726079434339,-191.60425695,0.00014169,2]
[337767396,1726079434348,-254.25418652,0.00014169,2]
[337767397,1726079434358,-150.0,0.00014169,2]
[337767398,1726079434369,-191.60425695,0.00014184,2]
[337767399,1726079434380,-254.25418652,0.00014184,2]
[337767400,1726079434390,-1737.379,0.00014188,2]
[337767401,1726079434399,-1920.0,0.00014188,2]
[337767402,1726079434409,-5860.0,0.00014188,2]
[337767403,1726079434418,-150.0,0.00014188,2]
[337767404,1726079434428,-191.60425695,0.00014199,2]
[337767405,1726079434438,-254.25418652,0.00014199,2]
[337767406,1726079434448,-200.3344452,0.000142,2]
[337767407,1726079434457,-150.0,0.00014201,2]
[337767408,1726079434722,-191.60425695,0.00014214,2]
[337767409,1726079434734,-254.25418652,0.00014214,2]
[337767410,1726079434743,-191.60425695,0.00014229,2]
[337767411,1726079434753,-254.25418652,0.00014229,2]
[337767412,1726079434762,-150.0,0.00014237,2]
[337767413,1726079434772,-150.0,0.00014237,2]
[337767414,1726079434781,-150.0,0.00014237,2]
[337767415,1726079434791,-191.60425695,0.00014245,2]
[337767416,1726079434802,-254.25418652,0.00014245,2]
[337767417,1726079434816,-191.60425695,0.0001426,2]
[337767418,1726079434826,-254.25418652,0.0001426,2]
[337767419,1726079434835,-150.0,0.00014273,2]
[337767420,1726079434845,-191.60425695,0.00014275,2]
[337767421,1726079434855,-254.25418652,0.00014275,2]
[337767422,1726079434864,-191.60425695,0.0001429,2]
[337767423,1726079434874,-254.25418652,0.0001429,2]
[337767424,1726079434883,-191.60425695,0.00014305,2]
[337767425,1726079434894,-254.25418652,0.00014305,2]
[337767426,1726079434904,-150.0,0.00014305,2]
[337767427,1726079434913,-150.0,0.00014308,2]
[337767428,1726079434923,-191.60425695,0.0001432,2]
[337767429,1726079434933,-254.25418652,0.0001432,2]
[337767430,1726079434943,-154.362379,0.00014323,2]
[337767431,1726079434953,-191.60425695,0.00014335,2]
[337767432,1726079434963,-254.25418652,0.00014335,2]
[337767433,1726079434972,-150.0,0.00014344,2]
[337767434,1726079434982,-191.60425695,0.00014351,2]
[337767435,1726079434992,-254.25418652,0.00014351,2]
[337767436,1726079435001,-191.60425695,0.00014366,2]
[337767437,1726079435012,-254.25418652,0.00014366,2]
[337767438,1726079435022,-150.0,0.0001438,2]
[337767439,1726079435032,-191.60425695,0.00014381,2]
[337767440,1726079435041,-254.25418652,0.00014381,2]
[337767441,1726079435051,-191.60425695,0.00014396,2]
[337767442,1726079435062,-254.25418652,0.00014396,2]
[337767443,1726079435077,-191.60425695,0.00014411,2]
[337767444,1726079435087,-254.25418652,0.00014411,2]
[337767445,1726079435096,-150.0,0.00014415,2]
[337767446,1726079435106,-191.60425695,0.00014426,2]
[337767447,1726079435115,-254.25418652,0.00014426,2]
[337767448,1726079435124,-191.60425695,0.00014441,2]
[337767449,1726079435134,-254.25418652,0.00014441,2]
[337767450,1726079435143,-150.0,0.00014441,2]
[337767451,1726079435152,-150.0,0.00014451,2]
[337767452,1726079435162,-191.60425695,0.00014456,2]
[337767453,1726079435171,-254.25418652,0.00014456,2]
[337767454,1726079435180,-191.60425695,0.00014472,2]
[337767455,1726079435189,-254.25418652,0.00014472,2]
[337767456,1726079435199,-191.60425695,0.00014487,2]
[337767457,1726079435208,-150.0,0.00014487,2]
[337767458,1726079435218,-150.0,0.00014487,2]
[337767459,1726079435228,-254.25418652,0.00014487,2]
[337767460,1726079435237,-150.0,0.00014487,2]
[337767461,1726079435247,-150.0,0.00014487,2]
[337767462,1726079435256,-150.0,0.00014487,2]
[337767463,1726079435267,-150.0,0.00014487,2]
[337767464,1726079435277,-2442.80785286,0.000145,2]
[337767465,1726079435287,-191.60425695,0.00014502,2]
[337767466,1726079435297,-254.25418652,0.00014502,2]
[337767467,1726079435311,-191.60425695,0.00014517,2]
[337767468,1726079435321,-254.25418652,0.00014517,2]
[337767469,1726079435330,-293.374559,0.00014521,2]
[337767470,1726079435339,-150.0,0.00014522,2]
[337767471,1726079435348,-191.60425695,0.00014532,2]
[337767472,1726079435358,-254.25418652,0.00014532,2]
[337767473,1726079435368,-191.60425695,0.00014547,2]
[337767474,1726079435378,-254.25418652,0.00014547,2]
[337767475,1726079435387,-150.0,0.00014558,2]
[337767476,1726079435396,-159.14,0.00014558,2]
[337767477,1726079435406,-191.60425695,0.00014562,2]
[337767478,1726079435415,-254.25418652,0.00014562,2]
[337767479,1726079435424,-191.60425695,0.00014578,2]
[337767480,1726079435433,-254.25418652,0.00014578,2]
[337767481,1726079435442,-150.0,0.00014578,2]
[337767482,1726079435451,-191.60425695,0.00014593,2]
[337767483,1726079435460,-254.25418652,0.00014593,2]
[337767484,1726079435469,-150.0,0.00014594,2]
[337767485,1726079435479,-191.60425695,0.00014608,2]
[337767486,1726079435488,-254.25418652,0.00014608,2]
[337767487,1726079435497,-150.0,0.00014612,2]
[337767488,1726079435507,-191.60425695,0.00014623,2]
[337767489,1726079435516,-254.25418652,0.00014623,2]
[337767490,1726079435525,-150.0,0.00014629,2]
[337767491,1726079435535,-191.60425695,0.00014638,2]
[337767492,1726079435544,-254.25418652,0.00014638,2]
[337767493,1726079435553,-750.832,0.00014646,2]
[337767494,1726079435563,-210.353,0.00014646,2]
[337767495,1726079435572,-191.60425695,0.00014653,2]
[337767496,1726079435581,-254.25418652,0.00014653,2]
[337767497,1726079435590,-150.0,0.00014665,2]
[337767498,1726079435600,-191.60425695,0.00014668,2]
[337767499,1726079435609,-254.25418652,0.00014668,2]
[337767500,1726079435619,-154.362379,0.00014673,2]
[337767501,1726079435630,-191.60425695,0.00014684,2]
[337767502,1726079435639,-254.25418652,0.00014684,2]
[337767503,1726079435650,-9078.0109,0.00014692,2]
[337767504,1726079435659,-191.60425695,0.00014699,2]
[337767505,1726079435669,-254.25418652,0.00014699,2]
[337767506,1726079435678,-17533.36142537,0.000147,2]
[337767507,1726079435688,-150.0,0.00014701,2]
[337767508,1726079435697,-191.60425695,0.00014714,2]
[337767509,1726079435706,-254.25418652,0.00014714,2]
[337767510,1726079435715,-150.0,0.00014714,2]
[337767511,1726079435724,-17533.36142531,0.00014722,2]
[337767512,1726079435734,-191.60425695,0.00014729,2]
[337767513,1726079435743,-254.25418652,0.00014729,2]
[337767514,1726079435752,-150.0,0.00014737,2]
[337767515,1726079435761,-150.0,0.00014737,2]
[337767516,1726079435770,-191.60425695,0.00014744,2]
[337767517,1726079435779,-254.25418652,0.00014744,2]
[337767518,1726079435788,-17533.36142531,0.00014744,2]
[337767519,1726079435797,-191.60425695,0.00014759,2]
[337767520,1726079435808,-254.25418652,0.00014759,2]
[337767521,1726079435818,-17533.36142531,0.00014767,2]
[337767522,1726079435827,-150.0,0.00014772,2]
[337767523,1726079435836,-191.60425695,0.00014774,2]
[337767524,1726079435845,-254.25418652,0.00014774,2]
[337767525,1726079435854,-17533.36142531,0.00014789,2]
[337767526,1726079435863,-191.60425695,0.0001479,2]
[337767527,1726079435872,-254.25418652,0.0001479,2]
[337767528,1726079435881,-6615.41816284,0.0001479,2]
[337767529,1726079435890,-44367.7594,0.00014792,2]
[337767530,1726079435899,-9875.83264663,0.000148,2]
[337767531,1726079435909,-3000.0,0.000148,2]
[337767532,1726079435917,-191.60425695,0.00014805,2]
[337767533,1726079435926,-254.25418652,0.00014805,2]
[337767534,1726079435935,-150.0,0.00014808,2]
[337767535,1726079435944,-17533.36142531,0.00014811,2]
[337767536,1726079435953,-191.60425695,0.0001482,2]
[337767537,1726079435962,-254.25418652,0.0001482,2]
[337767538,1726079435972,-17533.36142531,0.00014833,2]
[337767539,1726079435981,-191.60425695,0.00014835,2]
[337767540,1726079435990,-254.25418652,0.00014835,2]
[337767541,1726079435999,-150.0,0.00014844,2]
[337767542,1726079436008,-765.80919592,0.0001485,2]
[337767543,1726079436017,-191.60425695,0.0001485,2]
[337767544,1726079436026,-254.25418652,0.0001485,2]
[337767545,1726079436035,-150.0,0.0001485,2]
[337767546,1726079436046,-17533.36142531,0.00014856,2]
[337767547,1726079436054,-191.60425695,0.00014865,2]
[337767548,1726079436064,-254.25418652,0.00014865,2]
[337767549,1726079436073,-17533.36142531,0.00014878,2]
[337767550,1726079436084,-150.0,0.00014879,2]
[337767551,1726079436095,-191.60425695,0.0001488,2]
[337767552,1726079436105,-254.25418652,0.0001488,2]
[337767553,1726079436115,-10596.7709932,0.00014883,2]
[337767554,1726079436125,-10596.7709932,0.00014885,2]
[337767555,1726079436136,-10596.7709932,0.00014886,2]
[337767556,1726079436146,-10596.7709932,0.00014887,2]
[337767557,1726079436157,-10596.7709932,0.00014889,2]
[337767558,1726079436167,-12411.2315,0.0001489,2]
[337767559,1726079436178,-416.9215,0.0001489,2]
[337767560,1726079436188,-10596.7709932,0.0001489,2]
[337767561,1726079436198,-21193.5419865,0.0001489,2]
[337767562,1726079436209,-281.1116,0.0001489,2]
[337767563,1726079436220,-38952.145,0.0001489,2]
[337767564,1726079436229,-546.4415,0.0001489,2]
[337767565,1726079436239,-1930.1682,0.0001489,2]
[337767566,1726079436249,-4111.5447,0.0001489,2]
[337767567,1726079436259,-249.5533,0.0001489,2]
[337767568,1726079436271,-500.0,0.0001489,2]
[337767569,1726079436282,-1143.3318,0.0001489,2]
[337767570,1726079436292,-5800.0,0.00014891,2]
[337767571,1726079436303,-191.60425695,0.00014895,2]
[337767572,1726079436313,-254.25418652,0.00014895,2]
[337767573,1726079436322,-11274.201723,0.000149,2]
[337767574,1726079436333,-5864.21515073,0.000149,2]
[337767575,1726079436343,-5800.0,0.000149,2]
[337767576,1726079436352,-7500.0,0.000149,2]
[337767577,1726079436364,-227.61,0.000149,3]
[337767578,1726079436374,-152.93,0.000149,31]
[337767579,1726079436383,-152.93,0.000149,31]
[337767580,1726079436392,-152.93,0.000149,31]
[337767581,1726079436401,-152.93,0.000149,31]
[337767582,1726079436409,-152.93,0.000149,31]
[337767583,1726079436419,-152.93,0.000149,31]
[337767584,1726079436428,-152.93,0.000149,31]
[337767585,1726079436437,-410.9341637,0.000149,2]
[337767586,1726079436446,-4641.74730488,0.000149,2]
[337767587,1726079436455,-17533.36142531,0.000149,2]
[337767588,1726079436465,-191.60425695,0.00014911,2]
[337767589,1726079436474,-254.25418652,0.00014911,2]
[337767590,1726079436483,-150.0,0.00014915,2]
[337767591,1726079436492,-191.60425695,0.00014926,2]
[337767592,1726079436501,-254.25418652,0.00014926,2]
[337767593,1726079436510,-191.60425695,0.00014941,2]
[337767594,1726079436519,-254.25418652,0.00014941,2]
[337767595,1726079436529,-150.0,0.00014951,2]
[337767596,1726079436538,-191.60425695,0.00014956,2]
[337767597,1726079436547,-254.25418652,0.00014956,2]
[337767598,1726079436556,-154.68,0.0001496,2]
[337767599,1726079436565,-158.31767819,0.00014969,2]
[337767600,1726079436574,-31790.3129797,0.0001497,2]
[337767601,1726079436583,-191.60425695,0.00014971,2]
[337767602,1726079436592,-254.25418652,0.00014971,2]
[337767603,1726079436602,-63580.6259594,0.0001498,2]
[337767604,1726079436611,-53020.2425452,0.0001498,2]
[337767605,1726079436619,-105967.709932,0.0001498,2]
[337767606,1726079436628,-701.34395916,0.0001498,2]
[337767607,1726079436651,-5500.77126725,0.0001498,2]
[337767608,1726079436662,-4700.0,0.0001498,2]
[337767609,1726079436673,-1474.18482912,0.0001498,2]
[337767610,1726079436684,-6000.0,0.0001498,2]
[337767611,1726079436767,-3921.98682563,0.0001498,2]
[337767612,1726079436836,-2437.99633404,0.0001498,2]
[337767613,1726079436855,-23390.05705766,0.0001498,2]
[337767614,1726079436885,-1181.26213134,0.0001498,2]
[337767615,1726079436895,-74406.2968678,0.0001498,2]
[337767616,1726079436905,-150.31846873,0.00014986,2]
[337767617,1726079436914,-191.60425695,0.00014986,2]
[337767618,1726079436923,-150.32644084,0.00014986,2]
[337767619,1726079436933,-150.26954822,0.00014986,2]
[337767620,1726079436941,-254.25418652,0.00014986,2]
[337767621,1726079436951,-150.0,0.00014986,2]
[337767622,1726079436960,-150.2936067,0.00014986,2]
[337767623,1726079436969,-150.0,0.00014986,2]
[337767624,1726079436979,-150.0,0.00014986,2]
[337767625,1726079436988,-150.33837472,0.00014986,2]
[337767626,1726079436997,-75863.85652364,0.0001499,2]
[337767627,1726079437008,-3603.53690901,0.0001499,2]
[337767628,1726079437019,-289.8028466,0.0001499,2]
[337767629,1726079437031,-600.0,0.0001499,2]
[337767660,1726079438816,-316.18092611,0.00014188,2]
[337767663,1726079438835,-232.88207389,0.00014188,2]
[337767666,1726079438845,-7500.0,0.0001489,2]
[337767668,1726079438855,-361.52,0.0001498,3]
[337767670,1726079438867,-225.65978269,0.0001499,2]
[337767673,1726079438891,-1083.44152584,0.0001499,2]
[337767676,1726079438903,-5340.98495427,0.0001499,2]
[337767678,1726079438916,-338.26352533,0.0001499,2]
[337767680,1726079438934,-7799.5223659,0.0001499,2]
[337767682,1726079438951,-6016.27157419,0.0001499,2]
[337767684,1726079438963,-2126.22993636,0.0001499,2]
[337767685,1726079438975,-402.69165639,0.0001499,2]
[337767686,1726079438986,-462.45588772,0.0001499,2]
[337767687,1726079438997,-264.54053448,0.0001499,2]
[337767688,1726079439009,-6470.20833297,0.0001499,2]
[337767753,1726079441064,-1169.78021,0.0001485,2]
[337767756,1726079441073,-12826.43291661,0.0001499,2]
[337767757,1726079441083,-377.3304932,0.0001499,2]
[337767759,1726079441092,-470.2576348,0.0001499,2]
[337767761,1726079441101,-563.1847765,0.0001499,2]
[337767763,1726079441110,-656.1119181,0.0001499,2]
[337767765,1726079441119,-749.0390597,0.0001499,2]
[337767767,1726079441128,-4517.9129472,0.0001499,2]
[337767769,1726079441138,-4771.869192,0.0001499,2]
[337767771,1726079441148,-5025.8254368,0.0001499,2]
[337767773,1726079441158,-5279.7816815,0.0001499,2]
[337767776,1726079441169,-5533.7379263,0.0001499,2]
[337767778,1726079441179,-467.0153073,0.0001499,2]
[337767780,1726079441189,-494.4126714,0.0001499,2]
[337767782,1726079441199,-521.8100356,0.0001499,2]
[337767784,1726079441207,-549.2073998,0.0001499,2]
[337767786,1726079441217,-576.604764,0.0001499,2]
[337767788,1726079441225,-7714.55896373,0.0001499,2]
[337767790,1726079441237,-1800.3862206,0.0001499,2]
[337767793,1726079441255,-131872.36826967,0.0001499,2]
[337767795,1726079441264,-180.34936813,0.0001499,2]
[337767796,1726079441274,-11479.83398195,0.0001499,2]
[337767799,1726079441286,-250.97385841,0.0001499,2]
[337767800,1726079441295,-284.4033516,0.00014993,2]
[337767802,1726079441306,-4263.9567024,0.00014993,2]
[337767804,1726079441316,-439.6179431,0.00014993,2]
[337767806,1726079441326,-572.0,0.00015,2]
[337767808,1726079441335,-256429.27882582,0.00015,2]
[337767810,1726079441345,-523199.93494475,0.00015,2]
[337767812,1726079441355,-895015.46066932,0.00015,2]
[337767814,1726079441364,-1243958.51971987,0.00015,2]
[337767816,1726079441374,-300.0,0.00015,2]
[337767818,1726079441384,-114170.04304746,0.00015,2]
[337767820,1726079441394,-233552.49963821,0.00015,2]
[337767822,1726079441403,-200596.28470965,0.00015,2]
[337767824,1726079441412,-337800.65140432,0.00015,2]
[337767841,1726079441581,-1341.45000002,0.00015,2]
[337767843,1726079441593,-262.894995,0.00015,2]
[337767845,1726079441604,-370.36913529,0.00015,2]
[337767847,1726079441615,-377.9505883,0.00015,2]
[337767849,1726079441626,-859.801053,0.00015,2]
[337767851,1726079441637,-290.44,0.00015,2]
[337767866,1726079441781,-442.244,0.00014188,2]
[337767868,1726079441790,-74.80979565,0.00015,2]
[337767878,1726079444426,-68772.46197992,0.00015,2]
[337767879,1726079444446,-99115.80610931,0.00015,2]
[337767880,1726079444466,-854.55749319,0.00015,2]
[337767881,1726079444491,-2494.99999999,0.00015,2]
[337767882,1726079444509,-16740.689815,0.00015,2]
[337767887,1726079446614,-738.589,0.00014188,2]
[337767888,1726079446623,-571.0,0.00014897,2]
[337767889,1726079446632,-4371.75099999,0.00015,2]
[337767890,1726079446643,-255.5256,0.00015,2]
[337767900,1726080220219,336.01,0.0001139,2]
[337767901,1726080252445,1050.0,0.00011,2]
[337767962,1726080632288,-1098.10124655,0.00012274,2]